bitfinex-derivatives/quotes_SOLF0:USTF0_20260314
["timestamp","ask_amount","ask_price","bid_price","bid_amount"]
[1773516965977,9.24868441,86.964,86.921,4.47272319]
[1773516966172,9.24868441,86.963,86.921,4.47272319]
[1773516966374,9.24868441,86.962,86.921,4.47272319]
[1773516966572,10.347,86.965,86.921,4.47272319]
[1773516966871,9.25266481,86.964,86.921,4.47272319]
[1773516967073,9.25266481,86.963,86.921,4.47272319]
[1773516967377,9.25266481,86.962,86.921,4.47272319]
[1773516967677,9.25266481,86.961,86.921,4.47272319]
[1773516967872,9.25266481,86.96,86.921,4.47272319]
[1773516968076,10.347,86.965,86.921,4.47272319]
[1773516968277,18.59956529,86.964,86.921,4.47272319]
[1773516968477,9.25787879,86.963,86.921,4.47272319]
[1773516968684,9.25787879,86.962,86.921,4.47272319]
[1773516968984,9.25787879,86.961,86.921,4.47272319]
[1773516969183,9.25787879,86.96,86.921,4.47272319]
[1773516969383,9.25787879,86.959,86.921,4.47272319]
[1773516969583,9.25787879,86.958,86.921,4.47272319]
[1773516969882,9.25787879,86.957,86.921,4.47272319]
[1773516970182,10.347,86.965,86.921,4.47272319]
[1773516970382,9.26488918,86.964,86.921,4.47272319]
[1773516970578,9.26488918,86.963,86.921,4.47272319]
[1773516970781,9.26488918,86.962,86.921,4.47272319]
[1773516970982,9.26488918,86.961,86.921,4.47272319]
[1773516971183,9.26488918,86.96,86.921,4.47272319]
[1773516971380,9.26488918,86.959,86.921,4.47272319]
[1773516971581,9.26488918,86.958,86.921,4.47272319]
[1773516971882,9.26488918,86.957,86.921,4.47272319]
[1773516972175,10.347,86.965,86.921,4.47272319]
[1773516972380,9.26411965,86.964,86.921,4.47272319]
[1773516972574,9.26411965,86.963,86.921,4.47272319]
[1773516972775,9.26411965,86.962,86.921,4.47272319]
[1773516972978,9.26411965,86.961,86.921,4.47272319]
[1773516973182,9.26411965,86.96,86.921,4.47272319]
[1773516973382,9.26411965,86.959,86.921,4.47272319]
[1773516973584,9.26411965,86.958,86.921,4.47272319]
[1773516973780,9.26411965,86.957,86.921,4.47272319]
[1773516973981,10.347,86.965,86.921,4.47272319]
[1773516974183,10.347,86.963,86.921,4.47272319]
[1773516974380,9.26387079,86.962,86.921,4.47272319]
[1773516974576,9.26387079,86.961,86.921,4.47272319]
[1773516974786,9.26387079,86.96,86.921,4.47272319]
[1773516974985,9.26387079,86.959,86.921,4.47272319]
[1773516975286,9.26387079,86.958,86.921,4.47272319]
[1773516975585,10.347,86.963,86.921,4.47272319]
[1773516975786,9.26355743,86.962,86.921,4.47272319]
[1773516976087,9.26355743,86.961,86.921,4.47272319]
[1773516976288,39.32503511,86.97,86.921,4.47272319]
[1773516976488,9.26324097,86.969,86.921,4.47272319]
[1773516976786,10.347,86.967,86.923,4.46167039]
[1773516976986,9.26324097,86.966,86.923,4.46167039]
[1773516977188,9.26324097,86.965,86.923,4.46167039]
[1773516977388,9.26324097,86.964,86.923,4.46167039]
[1773516977687,9.26324097,86.963,86.923,4.46167039]
[1773516977887,9.26324097,86.962,86.923,4.46167039]
[1773516978187,10.347,86.967,86.923,4.46167039]
[1773516978379,9.26228814,86.966,86.923,4.46167039]
[1773516978580,9.26228814,86.965,86.923,4.46167039]
[1773516978779,9.26228814,86.964,86.923,4.46167039]
[1773516979084,9.26228814,86.963,86.923,4.46167039]
[1773516979285,9.26228814,86.962,86.923,4.46167039]
[1773516979585,9.26228814,86.962,86.9,3.12503511]
[1773516979586,10.348,86.958,86.891,4.46056641]
[1773516979788,3.12503511,86.94,86.891,4.46056641]
[1773516979993,3.12503511,86.93,86.891,4.46056641]
[1773516981486,3.12503511,86.92,86.881,4.45711971]
[1773516984993,10.351,86.929,86.881,4.45711971]
[1773516988189,10.351,86.929,86.883,4.48074983]
[1773516994994,10.351,86.929,86.885,4.47377382]
[1773517004000,10.351,86.929,86.886,10.356]
[1773517004207,10.35,86.938,86.887,4.4668933]
[1773517005205,10.35,86.938,86.891,4.46696531]
[1773517010206,10.35,86.938,86.88,3.12503511]
[1773517010207,10.35,86.938,86.893,4.46478486]
[1773517023424,9.25434119,86.937,86.893,4.46478486]
[1773517023621,9.25434119,86.936,86.893,4.46478486]
[1773517023822,10.35,86.938,86.893,4.46478486]
[1773517024023,9.25434,86.937,86.893,4.46478486]
[1773517024317,9.25434,86.936,86.895,4.47562462]
[1773517024521,10.349,86.946,86.895,4.47562462]
[1773517024721,9.26390465,86.945,86.895,4.47562462]
[1773517024919,9.26390465,86.944,86.895,4.47562462]
[1773517025224,9.26390465,86.943,86.895,4.47562462]
[1773517025427,9.26390465,86.942,86.895,4.47562462]
[1773517025618,9.26390465,86.941,86.897,4.47564479]
[1773517025818,10.349,86.946,86.897,4.47564479]
[1773517026113,9.26356809,86.945,86.897,4.47564479]
[1773517026316,9.26356809,86.944,86.897,4.47564479]
[1773517026513,9.26356809,86.943,86.899,10.355]
[1773517026824,9.26356809,86.942,86.9,4.47564248]
[1773517027013,10.349,86.946,86.9,4.47564248]
[1773517027216,160.789,87.058,86.902,4.4764497]
[1773517027217,10.348,86.956,86.902,4.4764497]
[1773517027417,9.25985118,86.955,86.902,4.4764497]
[1773517027613,9.25985118,86.954,86.902,4.4764497]
[1773517027923,9.25985118,86.953,86.902,4.4764497]
[1773517028121,9.25985118,86.952,86.902,4.4764497]
[1773517028325,10.348,86.956,86.902,4.4764497]
[1773517028517,9.25741414,86.955,86.907,4.47647408]
[1773517028722,9.25741414,86.954,86.907,4.47647408]
[1773517029022,9.25741414,86.953,86.907,4.47647408]
[1773517029224,9.25741414,86.952,86.907,4.47647408]
[1773517029525,10.348,86.956,86.907,4.47647408]
[1773517029718,9.25538347,86.955,86.907,4.47647408]
[1773517030021,9.25538347,86.954,86.907,4.47647408]
[1773517030221,9.25538347,86.953,86.907,4.47647408]
[1773517030423,10.348,86.956,86.907,4.47647408]
[1773517030623,9.25284075,86.955,86.907,4.47647408]
[1773517030823,3.12618943,86.95,86.907,4.47647408]
[1773517034425,3.12618943,86.96,86.91,4.46851988]
[1773517034630,9.24803685,86.958,86.91,4.46851988]
[1773517034930,9.24803685,86.957,86.91,4.46851988]
[1773517035227,9.24803685,86.956,86.91,4.46851988]
[1773517035421,36.22,86.958,86.91,4.46851988]
[1773517035626,36.22,86.958,86.9,3.12618943]
[1773517035627,9.24705408,86.957,86.913,14.80930488]
[1773517035928,9.24705408,86.956,86.914,4.45630488]
[1773517036128,36.22,86.958,86.914,4.45630488]
[1773517036330,9.24705408,86.957,86.914,4.45630488]
[1773517036629,9.24705408,86.956,86.914,4.45630488]
[1773517036830,36.22,86.958,86.914,4.45630488]
[1773517037030,9.24617388,86.957,86.914,4.45630488]
[1773517037230,9.24617388,86.956,86.914,4.45630488]
[1773517037425,36.22,86.958,86.914,4.45630488]
[1773517037622,9.24554883,86.957,86.914,4.45630488]
[1773517037822,36.22,86.958,86.914,4.45630488]
[1773517037823,9.24554883,86.956,86.914,4.45630488]
[1773517038023,36.22,86.958,86.914,4.45630488]
[1773517038223,9.24555935,86.957,86.914,4.45630488]
[1773517038425,36.22,86.958,86.914,4.45630488]
[1773517038628,9.24487873,86.957,86.914,4.45630488]
[1773517038823,36.22,86.958,86.914,4.45630488]
[1773517039023,9.24487873,86.957,86.914,4.45630488]
[1773517039233,36.22,86.958,86.914,4.45630488]
[1773517039533,9.2442869,86.957,86.914,4.45630488]
[1773517039732,36.22,86.958,86.914,4.45630488]
[1773517039923,9.2442869,86.957,86.914,4.45630488]
[1773517040125,36.22,86.958,86.914,4.45630488]
[1773517040332,9.2442869,86.957,86.914,4.45630488]
[1773517040632,36.22,86.958,86.914,4.45630488]
[1773517040832,9.24377814,86.957,86.914,4.45630488]
[1773517041033,36.22,86.958,86.914,4.45630488]
[1773517041235,9.24377814,86.957,86.914,4.45630488]
[1773517041434,36.22,86.958,86.914,4.45630488]
[1773517041634,9.24334844,86.957,86.914,4.45630488]
[1773517041839,36.22,86.958,86.914,4.45630488]
[1773517042141,9.24334844,86.957,86.914,4.45630488]
[1773517042335,36.22,86.958,86.917,4.45244795]
[1773517042741,3.12618943,86.97,86.917,4.45244795]
[1773517042941,36.22,86.966,86.917,4.45244795]
[1773517043543,36.22,86.966,86.92,4.45241655]
[1773517044642,36.22,86.966,86.922,4.45999353]
[1773517050348,36.22,86.966,86.924,4.46374424]
[1773517053455,3.12618943,86.96,86.923,10.352]
[1773517055446,3.12618943,86.96,86.915,10.353]
[1773517056145,3.12618943,86.96,86.916,4.46684689]
[1773517057250,36.22,86.966,86.916,4.46684689]
[1773517062742,36.22,86.966,86.92,10.352]
[1773517065153,10.347,86.968,86.92,10.352]
[1773517065459,10.347,86.966,86.92,10.352]
[1773517068255,9.2538499,86.965,86.92,10.352]
[1773517068455,10.347,86.966,86.92,10.352]
[1773517068650,9.2538499,86.965,86.92,10.352]
[1773517068852,10.347,86.966,86.92,10.352]
[1773517069051,9.2538499,86.965,86.92,10.352]
[1773517069249,9.25693666,86.964,86.92,10.352]
[1773517069558,9.25693666,86.963,86.92,10.352]
[1773517069758,10.347,86.966,86.92,14.81955383]
[1773517070055,9.25693666,86.965,86.92,14.81955383]
[1773517070257,9.25693666,86.964,86.92,14.81955383]
[1773517070457,9.25693666,86.963,86.92,14.81955383]
[1773517070760,10.347,86.966,86.92,14.81955383]
[1773517070952,9.25827353,86.965,86.92,14.81955383]
[1773517071153,9.25827353,86.964,86.921,4.46839766]
[1773517071349,9.25827353,86.963,86.921,4.46839766]
[1773517071555,9.25827353,86.962,86.921,4.46839766]
[1773517071849,10.347,86.966,86.921,4.46839766]
[1773517072155,9.25984888,86.965,86.921,4.46839766]
[1773517072355,9.25984888,86.964,86.921,4.46839766]
[1773517072656,9.25984888,86.963,86.921,4.46839766]
[1773517072856,9.25984888,86.962,86.921,4.46839766]
[1773517073157,10.347,86.966,86.921,4.46839766]
[1773517073360,9.26010024,86.965,86.921,4.46839766]
[1773517073559,9.26010024,86.964,86.921,4.46839766]
[1773517073759,9.26010024,86.963,86.921,4.46839766]
[1773517073960,9.26010024,86.962,86.921,4.46839766]
[1773517074159,10.347,86.966,86.921,4.46839766]
[1773517074359,9.25254085,86.965,86.921,4.46839766]
[1773517074560,9.25254085,86.964,86.921,4.46839766]
[1773517074760,9.25254085,86.963,86.921,4.46839766]
[1773517074962,9.25254085,86.962,86.921,4.46839766]
[1773517075259,10.347,86.966,86.921,4.46839766]
[1773517075461,9.2532453,86.965,86.921,4.46839766]
[1773517075661,9.2532453,86.964,86.921,4.46839766]
[1773517075858,9.2532453,86.963,86.921,4.46839766]
[1773517076058,9.2532453,86.962,86.921,4.46839766]
[1773517076257,10.347,86.966,86.921,4.46839766]
[1773517076558,9.25366777,86.965,86.921,4.46839766]
[1773517076754,9.25366777,86.964,86.923,4.4702389]
[1773517076960,10.346,86.974,86.923,4.4702389]
[1773517077161,9.25473691,86.973,86.923,4.4702389]
[1773517077357,9.25473691,86.972,86.923,4.4702389]
[1773517077661,9.25473691,86.971,86.923,4.4702389]
[1773517077858,9.25473691,86.97,86.923,4.4702389]
[1773517078058,10.346,86.974,86.923,4.4702389]
[1773517078260,9.25428265,86.973,86.923,4.4702389]
[1773517078455,9.25428265,86.972,86.923,4.4702389]
[1773517078764,9.25428265,86.971,86.928,4.47969178]
[1773517079064,10.346,86.974,86.928,4.47969178]
[1773517079364,9.25398219,86.973,86.928,4.47969178]
[1773517079563,9.25398219,86.972,86.928,4.47969178]
[1773517079761,9.25398219,86.971,86.928,4.47969178]
[1773517079962,10.346,86.974,86.928,4.47969178]
[1773517080159,9.25378276,86.973,86.928,4.47969178]
[1773517080355,9.25378276,86.972,86.928,4.47969178]
[1773517080566,9.25378276,86.971,86.928,4.47969178]
[1773517080765,9.25378276,86.97,86.928,4.47969178]
[1773517080964,10.346,86.974,86.928,4.47969178]
[1773517081165,9.25366528,86.973,86.928,4.47969178]
[1773517081367,9.25366528,86.972,86.928,4.47969178]
[1773517081667,9.25366528,86.971,86.928,4.47969178]
[1773517081861,9.25366528,86.97,86.928,4.47969178]
[1773517082164,10.346,86.974,86.928,4.47969178]
[1773517082364,9.25366926,86.973,86.928,4.47969178]
[1773517082564,9.25366926,86.972,86.928,4.47969178]
[1773517082766,9.25366926,86.971,86.928,4.47969178]
[1773517083065,10.346,86.974,86.928,4.47969178]
[1773517083265,9.25378849,86.973,86.928,4.47969178]
[1773517083464,9.25378849,86.972,86.928,4.47969178]
[1773517083665,9.25378849,86.971,86.931,4.45133153]
[1773517083865,9.25378849,86.97,86.931,4.45133153]
[1773517084165,10.345,86.983,86.931,4.45133153]
[1773517084370,18.58671958,86.982,86.931,4.45133153]
[1773517084666,18.58671958,86.981,86.933,4.45128471]
[1773517084865,18.58671958,86.98,86.933,4.45128471]
[1773517085165,18.58671958,86.979,86.933,4.45128471]
[1773517085466,18.58671958,86.978,86.933,4.45128471]
[1773517085666,9.25478973,86.977,86.933,4.45128471]
[1773517085863,9.25478973,86.976,86.933,4.45128471]
[1773517086165,9.25478973,86.975,86.933,4.45128471]
[1773517086367,9.25478973,86.974,86.933,4.45128471]
[1773517086561,9.25478973,86.973,86.933,4.45128471]
[1773517086766,9.25478973,86.972,86.933,4.45128471]
[1773517086967,9.25478973,86.971,86.933,4.45128471]
[1773517087167,9.25478973,86.97,86.933,4.45128471]
[1773517087369,3.12354882,86.98,86.933,4.45128471]
[1773517087563,18.55595982,86.979,86.933,4.45128471]
[1773517087765,18.55595982,86.978,86.933,4.45128471]
[1773517087965,9.25661778,86.977,86.933,4.45128471]
[1773517088166,9.25661778,86.976,86.933,4.45128471]
[1773517088366,9.25661778,86.975,86.933,4.45128471]
[1773517088568,9.25661778,86.974,86.933,4.45128471]
[1773517088860,9.25661778,86.973,86.933,4.45128471]
[1773517089065,9.25661778,86.972,86.933,4.45128471]
[1773517089261,9.25661778,86.971,86.933,4.45128471]
[1773517089470,9.25661778,86.97,86.933,4.45128471]
[1773517089670,3.12354882,86.98,86.933,4.45128471]
[1773517089871,18.55436119,86.979,86.933,4.45128471]
[1773517090073,9.25581784,86.978,86.933,4.45128471]
[1773517090370,9.25581784,86.977,86.933,4.45128471]
[1773517090571,9.25581784,86.976,86.933,4.45128471]
[1773517090770,9.25581784,86.975,86.933,4.45128471]
[1773517091072,9.25581784,86.974,86.933,4.45128471]
[1773517091270,9.25581784,86.973,86.933,4.45128471]
[1773517091472,9.25581784,86.972,86.933,4.45128471]
[1773517091673,9.25581784,86.971,86.933,4.45128471]
[1773517091973,9.25581784,86.97,86.933,4.45128471]
[1773517092172,3.12354882,86.98,86.933,4.45128471]
[1773517092368,18.55260416,86.979,86.933,4.45128471]
[1773517092573,9.2549412,86.978,86.933,4.45128471]
[1773517092775,9.2549412,86.977,86.933,4.45128471]
[1773517092973,9.2549412,86.976,86.933,4.45128471]
[1773517093175,9.2549412,86.975,86.933,4.45128471]
[1773517093472,9.2549412,86.974,86.933,4.45128471]
[1773517093667,9.2549412,86.973,86.933,4.45128471]
[1773517093867,9.2549412,86.972,86.933,4.45128471]
[1773517094067,9.2549412,86.971,86.933,4.45128471]
[1773517094265,3.12354882,86.98,86.933,4.45128471]
[1773517094464,18.55177771,86.979,86.933,4.45128471]
[1773517094765,9.25453293,86.978,86.933,4.45128471]
[1773517094967,9.25453293,86.977,86.933,4.45128471]
[1773517095166,9.25453293,86.976,86.933,4.45128471]
[1773517095366,9.25453293,86.975,86.933,4.45128471]
[1773517095570,9.25453293,86.974,86.933,4.45128471]
[1773517095774,9.25453293,86.973,86.933,4.45128471]
[1773517095976,9.25453293,86.972,86.933,4.45128471]
[1773517096178,9.25453293,86.971,86.933,4.45128471]
[1773517096377,3.12354882,86.98,86.933,4.45128471]
[1773517096677,18.55114092,86.979,86.933,4.45128471]
[1773517096873,9.25421426,86.978,86.933,4.45128471]
[1773517097078,9.25421426,86.977,86.933,4.45128471]
[1773517097279,9.25421426,86.976,86.933,4.45128471]
[1773517097576,9.25421426,86.975,86.933,4.45128471]
[1773517097776,9.25421426,86.974,86.933,4.45128471]
[1773517097979,9.25421426,86.973,86.935,4.4204289]
[1773517098174,9.25421426,86.972,86.935,4.4204289]
[1773517098479,9.25421426,86.971,86.935,4.4204289]
[1773517098680,3.12354882,86.98,86.935,4.4204289]
[1773517098881,18.55073868,86.979,86.935,4.4204289]
[1773517099082,9.25401317,86.978,86.938,4.42039292]
[1773517099278,9.25401317,86.977,86.938,4.42039292]
[1773517099583,9.25401317,86.976,86.938,4.42039292]
[1773517099782,9.25401317,86.975,86.938,4.42039292]
[1773517099985,9.25401317,86.974,86.938,4.42039292]
[1773517100180,9.25401317,86.973,86.938,4.42039292]
[1773517100382,9.25401317,86.972,86.938,4.42039292]
[1773517100583,9.25401317,86.971,86.938,4.42039292]
[1773517100782,3.12354882,86.98,86.938,4.42039292]
[1773517101086,18.55097286,86.979,86.938,4.42039292]
[1773517101287,9.25413149,86.978,86.938,4.42039292]
[1773517101583,9.25413149,86.977,86.938,4.42039292]
[1773517101786,9.25413149,86.976,86.938,4.42039292]
[1773517102085,9.25413149,86.975,86.938,4.42039292]
[1773517102286,9.25413149,86.974,86.938,4.42039292]
[1773517102486,9.25413149,86.973,86.938,4.42039292]
[1773517102685,9.25413149,86.972,86.938,4.42039292]
[1773517102886,9.25413149,86.971,86.938,4.42039292]
[1773517103088,3.12354882,86.98,86.938,4.42039292]
[1773517103388,18.55140114,86.979,86.938,4.42039292]
[1773517103587,9.25435922,86.978,86.938,4.42039292]
[1773517103786,9.25435922,86.977,86.938,4.42039292]
[1773517103987,9.25435922,86.976,86.938,4.42039292]
[1773517104188,9.25435922,86.975,86.938,4.42039292]
[1773517104385,9.25435922,86.974,86.938,4.42039292]
[1773517104690,9.25435922,86.973,86.938,4.42039292]
[1773517104886,9.25435922,86.972,86.938,4.42039292]
[1773517105086,9.25435922,86.971,86.938,4.42039292]
[1773517105291,3.12354882,86.98,86.938,4.42039292]
[1773517105589,18.53779346,86.979,86.938,4.42039292]
[1773517105787,9.24023496,86.978,86.938,4.42039292]
[1773517105984,9.24023496,86.977,86.938,4.42039292]
[1773517106180,9.24023496,86.976,86.938,4.42039292]
[1773517106488,9.24023496,86.975,86.938,4.42039292]
[1773517106689,3.12354882,86.98,86.94,4.4260706]
[1773517106991,9.24100427,86.979,86.94,4.4260706]
[1773517107291,3.12354882,86.98,86.94,4.4260706]
[1773517107481,9.24026461,86.979,86.94,4.4260706]
[1773517107687,3.12354882,86.98,86.942,4.42604593]
[1773517107887,9.24026461,86.979,86.942,4.42604593]
[1773517108088,3.12354882,86.98,86.942,4.42604593]
[1773517108287,9.23966519,86.979,86.942,4.42604593]
[1773517108487,3.12354882,86.99,86.942,4.42604593]
[1773517108684,18.53631705,86.989,86.942,4.42604593]
[1773517108990,18.53631705,86.988,86.942,4.42604593]
[1773517109191,9.23966519,86.987,86.942,4.42604593]
[1773517109382,9.23966519,86.986,86.942,4.42604593]
[1773517109582,9.23966519,86.985,86.942,4.42604593]
[1773517109887,9.23966519,86.984,86.942,4.42604593]
[1773517110085,9.23966519,86.983,86.942,4.42604593]
[1773517110284,9.23966519,86.982,86.942,4.42604593]
[1773517110487,9.23966519,86.981,86.942,4.42604593]
[1773517110685,9.23966519,86.98,86.942,4.42604593]
[1773517110898,3.12354882,86.99,86.942,4.42604593]
[1773517111193,18.53466295,86.989,86.942,4.42604593]
[1773517111394,18.53466295,86.988,86.942,4.42604593]
[1773517111594,9.23883803,86.987,86.942,4.42604593]
[1773517111790,9.23883803,86.986,86.942,4.42604593]
[1773517111991,9.23883803,86.985,86.942,4.42604593]
[1773517112293,9.23883803,86.984,86.942,4.42604593]
[1773517112493,9.23883803,86.983,86.942,4.42604593]
[1773517112693,9.23883803,86.982,86.942,4.42604593]
[1773517112893,9.23883803,86.981,86.942,4.42604593]
[1773517113098,9.23883803,86.98,86.942,4.42604593]
[1773517113392,3.12354882,86.99,86.942,4.42604593]
[1773517113594,18.53373565,86.989,86.942,4.42604593]
[1773517113793,18.53373565,86.988,86.942,4.42604593]
[1773517113992,9.23837167,86.987,86.942,4.42604593]
[1773517114193,9.23837167,86.986,86.942,4.42604593]
[1773517114498,9.23837167,86.985,86.942,4.42604593]
[1773517114692,9.23837167,86.984,86.942,4.42604593]
[1773517114890,9.23837167,86.983,86.942,4.42604593]
[1773517115092,10.344,86.991,86.944,4.42431206]
[1773517115296,12.36158351,86.99,86.944,4.42431206]
[1773517115497,9.23803469,86.989,86.944,4.42431206]
[1773517115799,9.23803469,86.988,86.944,4.42431206]
[1773517115988,9.23803469,86.987,86.944,4.42431206]
[1773517116189,9.23803469,86.986,86.944,4.42431206]
[1773517116386,9.23803469,86.985,86.944,4.42431206]
[1773517116586,9.23803469,86.984,86.944,4.42431206]
[1773517116796,3.12354882,86.99,86.944,4.42431206]
[1773517116996,9.23815329,86.989,86.944,4.42431206]
[1773517117195,9.23815329,86.988,86.944,4.42431206]
[1773517117391,9.23815329,86.987,86.944,4.42431206]
[1773517117590,9.23815329,86.986,86.944,4.42431206]
[1773517117794,9.23815329,86.985,86.944,4.42431206]
[1773517117990,3.12354882,86.99,86.944,4.42431206]
[1773517118192,9.23737616,86.989,86.944,4.42431206]
[1773517118393,9.23737616,86.988,86.944,4.42431206]
[1773517118596,9.23737616,86.987,86.944,4.42431206]
[1773517118797,9.23737616,86.986,86.944,4.42431206]
[1773517118997,9.23737616,86.985,86.944,4.42431206]
[1773517119198,3.12354882,86.99,86.944,4.42431206]
[1773517119394,9.23806481,86.989,86.944,4.42431206]
[1773517119599,3.12354882,86.99,86.944,4.42431206]
[1773517119600,9.23806481,86.988,86.944,4.42431206]
[1773517119899,9.23806481,86.987,86.944,4.42431206]
[1773517120098,9.23806481,86.986,86.944,4.42431206]
[1773517120298,9.23806481,86.985,86.944,4.42431206]
[1773517120600,3.12354882,86.99,86.944,4.42431206]
[1773517120795,9.23832318,86.989,86.944,4.42431206]
[1773517121098,9.23832318,86.988,86.944,4.42431206]
[1773517121298,9.23832318,86.987,86.944,4.42431206]
[1773517121491,9.23832318,86.986,86.944,4.42431206]
[1773517121690,9.23832318,86.985,86.944,4.42431206]
[1773517121897,9.23832318,86.984,86.944,4.42431206]
[1773517122097,3.12354882,86.99,86.944,4.42431206]
[1773517122398,9.2383506,86.989,86.944,4.42431206]
[1773517122599,9.2383506,86.988,86.944,4.42431206]
[1773517122799,9.2383506,86.987,86.944,4.42431206]
[1773517123098,9.2383506,86.986,86.944,4.42431206]
[1773517123299,9.2383506,86.985,86.944,4.42431206]
[1773517123499,3.12354882,86.99,86.944,4.42431206]
[1773517123801,9.23786885,86.989,86.944,4.42431206]
[1773517123999,9.23786885,86.988,86.944,4.42431206]
[1773517124299,9.23786885,86.987,86.944,4.42431206]
[1773517124500,9.23786885,86.986,86.944,4.42431206]
[1773517124691,9.23786885,86.985,86.944,4.42431206]
[1773517124892,3.12354882,86.99,86.944,4.42431206]
[1773517125101,9.23752552,86.989,86.944,4.42431206]
[1773517125302,9.23752552,86.988,86.944,4.42431206]
[1773517125601,9.23752552,86.987,86.944,4.42431206]
[1773517125800,9.23752552,86.986,86.944,4.42431206]
[1773517126000,9.23752552,86.985,86.944,4.42431206]
[1773517126202,3.12354882,86.99,86.944,4.42431206]
[1773517126405,9.23698518,86.989,86.944,4.42431206]
[1773517126598,9.23698518,86.988,86.944,4.42431206]
[1773517126799,9.23698518,86.987,86.944,4.42431206]
[1773517126993,9.23698518,86.986,86.944,4.42431206]
[1773517127199,9.23698518,86.985,86.944,4.42431206]
[1773517127397,3.12354882,86.99,86.944,4.42431206]
[1773517127600,9.2368428,86.989,86.944,4.42431206]
[1773517127800,9.2368428,86.988,86.944,4.42431206]
[1773517128103,9.2368428,86.987,86.944,4.42431206]
[1773517128299,9.2368428,86.986,86.944,4.42431206]
[1773517128503,9.2368428,86.985,86.944,4.42431206]
[1773517128703,3.12354882,86.99,86.944,4.42431206]
[1773517129004,9.23668884,86.989,86.944,4.42431206]
[1773517129302,9.23668884,86.988,86.944,4.42431206]
[1773517129503,9.23668884,86.987,86.944,4.42431206]
[1773517129802,9.23668884,86.986,86.944,4.42431206]
[1773517130003,9.23668884,86.985,86.944,4.42431206]
[1773517130204,3.12354882,86.99,86.944,4.42431206]
[1773517130406,9.23048537,86.989,86.944,4.42431206]
[1773517130602,9.23048537,86.988,86.944,4.42431206]
[1773517130803,9.23048537,86.987,86.944,4.42431206]
[1773517131006,9.23048537,86.986,86.944,4.42431206]
[1773517131305,3.12354882,86.99,86.944,4.42431206]
[1773517131498,9.23060187,86.989,86.944,4.42431206]
[1773517131703,9.23060187,86.988,86.944,4.42431206]
[1773517131904,9.23060187,86.987,86.944,4.42431206]
[1773517132105,9.23060187,86.986,86.944,4.42431206]
[1773517132304,3.12354882,86.99,86.944,4.42431206]
[1773517132502,9.23061685,86.989,86.944,4.42431206]
[1773517132800,3.12354882,86.99,86.944,4.42431206]
[1773517132801,9.23061685,86.988,86.944,4.42431206]
[1773517132999,9.23061685,86.987,86.944,4.42431206]
[1773517133198,9.23061685,86.986,86.944,4.42431206]
[1773517133406,3.12354882,86.99,86.944,4.42431206]
[1773517133705,9.23067335,86.989,86.944,4.42431206]
[1773517133906,9.23067335,86.988,86.944,4.42431206]
[1773517134107,9.23067335,86.987,86.944,4.42431206]
[1773517134408,9.23067335,86.986,86.944,4.42431206]
[1773517134706,9.23067335,86.985,86.944,4.42431206]
[1773517134906,3.12354882,86.99,86.944,4.42431206]
[1773517135107,9.23149608,86.989,86.944,4.42431206]
[1773517135306,9.23149608,86.988,86.944,4.42431206]
[1773517135607,9.23149608,86.987,86.944,4.42431206]
[1773517135809,9.23149608,86.986,86.944,4.42431206]
[1773517136008,9.23149608,86.985,86.944,4.42431206]
[1773517136306,3.12354882,86.99,86.944,4.42431206]
[1773517136505,9.2316886,86.989,86.944,4.42431206]
[1773517136707,9.2316886,86.988,86.944,4.42431206]
[1773517136907,9.2316886,86.987,86.944,4.42431206]
[1773517137107,9.2316886,86.986,86.944,4.42431206]
[1773517137309,9.2316886,86.985,86.944,4.42431206]
[1773517137509,10.344,86.991,86.944,4.42431206]
[1773517137710,9.23088365,86.99,86.944,4.42431206]
[1773517137908,9.23088365,86.989,86.944,4.42431206]
[1773517138209,9.23088365,86.988,86.944,4.42431206]
[1773517138409,9.23088365,86.987,86.944,4.42431206]
[1773517138605,9.23088365,86.986,86.944,4.42431206]
[1773517138810,9.23088365,86.985,86.944,4.42431206]
[1773517139011,3.12354882,86.99,86.944,4.42431206]
[1773517139309,9.23167608,86.989,86.946,4.44531378]
[1773517139509,9.23167608,86.988,86.946,4.44531378]
[1773517139711,9.23167608,86.987,86.946,4.44531378]
[1773517140013,9.23167608,86.986,86.946,4.44531378]
[1773517140211,9.23167608,86.985,86.946,4.44531378]
[1773517140511,3.12354882,86.99,86.946,4.44531378]
[1773517140708,9.2320241,86.989,86.946,4.44531378]
[1773517140906,9.2320241,86.988,86.946,4.44531378]
[1773517141102,9.2320241,86.987,86.946,4.44531378]
[1773517141311,9.2320241,86.986,86.946,4.44531378]
[1773517141511,9.2320241,86.985,86.946,4.44531378]
[1773517141712,3.12354882,86.99,86.946,4.44531378]
[1773517141913,9.23244866,86.989,86.946,4.44531378]
[1773517142108,9.23244866,86.988,86.946,4.44531378]
[1773517142313,9.23244866,86.987,86.946,4.44531378]
[1773517142506,9.23244866,86.986,86.946,4.44531378]
[1773517142706,9.23244866,86.985,86.946,4.44531378]
[1773517142909,3.12354882,86.99,86.946,4.44531378]